Cogmind - Beta 16 @@@ ROGUE MODE // 2025.10.27 @ 04:47:39 Player: Demo Result: Destroyed by S-10 Pest with Light Assault Rifle Performance ------------- Evolutions (1) 500 Regions Visited (3) 600 Robots Destroyed (0) 0 Value Destroyed (0) 0 Prototype IDs (0) 0 Alien Tech Used (0) 0 Bonus (200) 200 TOTAL SCORE: 1300 Bonus ------- Pacifist 200 Cogmind --------- Core Integrity 0/400 Matter 300/300 Energy 98/100 System Corruption 0% Temperature Cool (0) Movement Core (50) Location -9/Materials Parts ------- > --- POWER (1) -------- (None) > --- PROPULSION (4) --- (None) > --- UTILITY (2) ------ Visual Processing Unit > --- WEAPON (2) ------- (None) > --- INVENTORY (5) ---- Combat Airjet Large Storage Unit Shotgun Mining Laser Mace Peak State ------------ > --- POWER ------------ (None) > --- PROPULSION ------- Light Treads Light Treads > --- UTILITY ---------- Visual Processing Unit Visual Processing Unit > --- WEAPON ----------- (None) > --- INVENTORY -------- Large Storage Unit Shotgun Shotgun Mining Laser Mace [Rating: 6] Favorites ----------- Power None Propulsion Light Treads Treads Light Treads Utility Visual Processing Unit Processor Visual Processing Unit Weapon None Build | -11 -10 -10 -9 ------- Run | Yrd Mat Min Mat Slots Evolved 2 | . . . 2 Power . | . . . . Propulsion 2 | . . . 2 Utility . | . . . . Weapon . | . . . . Parts Attached 4 | 2 2 . . Power . | . . . . Engine . | . . . . Core . | . . . . Reactor . | . . . . Propulsion 2 | 2 . . . Treads 2 | 2 . . . Leg . | . . . . Wheel . | . . . . Hover . | . . . . Flight . | . . . . Utility 2 | . 2 . . Device . | . . . . Storage . | . . . . Processor 2 | . 2 . . Hackware . | . . . . Protection . | . . . . Artifact . | . . . . Weapon . | . . . . Energy Gun . | . . . . Energy Cannon . | . . . . Ballistic Gun . | . . . . Ballistic Cannon . | . . . . Launcher . | . . . . Special Weapon . | . . . . Impact Weapon . | . . . . Slashing Weapon . | . . . . Piercing Weapon . | . . . . Special Melee Weapon . | . . . . Unidentified Prototypes . | . . . . Parts Lost 2 | . . . 2 Power . | . . . . Propulsion 2 | . . . 2 Utility . | . . . . Weapon . | . . . . Highest Loss Streak 2 | . . . 2 To Critical Strikes . | . . . . Average Backups 4 | . 1 5 5 Power . | . . . . Propulsion . | . . . 1 Utility . | . . 1 1 Weapon 3 | . . 3 3 Tool/Special . | . . . . Unused Backups 5 | . . 1 4 Power . | . . . . Propulsion . | . . . . Utility 1 | . . . 1 Weapon 4 | . . 1 3 Tool/Special . | . . . . Average Slot Usage (%) 37 | . 32 42 23 Treads 24 | . 28 28 12 Processor 12 | . 4 14 11 Peak Build Rating 6 | 2 6 5 5 Average Rating 3 | 1 2 4 4 On Entrance 3 | . 2 6 5 Avg Prop Armor Cover (%) 41 | 41 41 41 41 Naked Turns . | . . . . Heaviest Build . | . . . . Greatest Support 3 | 3 3 3 3 Greatest Overweight (x) . | . . . . Average Overweight (x) . | . . . . Largest Inventory Capacity 5 | 5 5 5 5 Average Capacity 5 | 5 5 5 5 Most Carried 5 | . 5 5 5 Average Carried 4 | . 2 4 5 Final Capacity 5 | 5 5 5 5 Final Carried 5 | . 5 5 5 Class Distribution -------------------- 100% | Mutant Dominant Class ---------------- Mutant | -10/Materials Mutant | -10/Mines Mutant | -9/Materials Resources | -11 -10 -10 -9 ----------- Run | Yrd Mat Min Mat Matter Collected 240 | 148 . 92 . Remotely . | . . . . Salvage Created . | . . . . Parts . | . . . . Haulers Intercepted . | . . . . Recyclers Shooed . | . . . . Parts Field Recycled . | . . . . Retrieved Matter . | . . . . Parts Self-Destructed . | . . . . Prevented . | . . . . Parts Restored . | . . . . Kills | -11 -10 -10 -9 ------- Run | Yrd Mat Min Mat Combat Hostiles Destroyed . | . . . . Classes Destroyed . | . . . . Best Kill Streak . | . . . . Combat Bots Only . | . . . . Max Kills in Single Turn . | . . . . Gunslinging . | . . . . Exploded . | . . . . Melee . | . . . . Uniques/NPCs Destroyed . | . . . . Combat | -11 -10 -10 -9 -------- Run | Yrd Mat Min Mat Hostile Shots Fired 117 | . . 12 105 Missed 49 | . . 6 43 Hits 68 | . . 6 62 Melee 2 | . . 2 . Projectile 66 | . . 4 62 Critical Strikes 1 | . . . 1 Damage Taken 718 | . . 141 577 Core 430 | . . 24 406 Absorbed by Shields . | . . . . Core Remaining (%) 95 | 100 . 90 . Volleys Fired . | . . . . Largest . | . . . . Hottest . | . . . . Shots Fired . | . . . . Gun . | . . . . Cannon . | . . . . Launcher . | . . . . Special . | . . . . Kinetic . | . . . . Thermal . | . . . . Explosive . | . . . . Electromagnetic . | . . . . Robot Hit Streak . | . . . . Robot Miss Streak . | . . . . Penetration Max . | . . . . Secondary Targets . | . . . . Shots Hit Robots . | . . . . Core Hits 1 | . . 1 . Critical Kills . | . . . . Critical Parts Destroyed . | . . . . Critical Strikes . | . . . . Melee Attacks . | . . . . Impact . | . . . . Slashing . | . . . . Piercing . | . . . . Sneak Attacks . | . . . . Combat Hostiles . | . . . . Follow-up Attacks . | . . . . Damage Inflicted 22 | . . 22 . Guns . | . . . . Cannons . | . . . . Explosions . | . . . . Melee . | . . . . Ramming 22 | . . 22 . Kinetic . | . . . . Thermal . | . . . . Explosive . | . . . . Electromagnetic . | . . . . Impact . | . . . . Slashing . | . . . . Piercing . | . . . . Highest Corruption . | . . . . Average Corruption . | . . . . Corruption Purged . | . . . . Corruption Blocked . | . . . . Overload Shots . | . . . . Overflow Damage . | . . . . Projectiles . | . . . . Explosions . | . . . . Melee . | . . . . Knockbacks . | . . . . Impact . | . . . . Kinetic . | . . . . Secondary . | . . . . Self-Inflicted Damage 11 | . . 11 . Shots . | . . . . Rammed 4 | . . 4 . Targets Rammed 4 | . . 4 . Kicked . | . . . . Crushed . | . . . . Highest Temperature . | . . . . Average Temperature . | . . . . Received Heat Transfer 66 | . . . 66 Siege Activations . | . . . . Martial Activations . | . . . . Shielding Activations . | . . . . Robots Disrupted . | . . . . Combat Hostiles . | . . . . Robots Corrupted . | . . . . Combat Hostiles . | . . . . Parts Fried . | . . . . Impact Corruptions . | . . . . Robots Melted . | . . . . Combat Hostiles . | . . . . Parts Melted . | . . . . Heat Transferred . | . . . . Parts Sabotaged . | . . . . Parts Stolen . | . . . . Parts Stripped . | . . . . Power Chain Reactions . | . . . . Alert | -11 -10 -10 -9 ------- Run | Yrd Mat Min Mat Maximum Alert Level . | . . . . Low Security (%) 100 | 100 100 100 100 Level 1 . | . . . . Level 2 . | . . . . Level 3 . | . . . . Level 4 . | . . . . Level 5 . | . . . . High Security . | . . . . Max Security . | . . . . Peak Influence 35 | . . 15 35 Initial 1 | . . . 1 Average 1 | . . . 5 Influence Increases 60 | . . 15 45 Partial Spotted 15 | . . 15 . Lose Combat Pursuer 45 | . . . 45 Influence Decreases 35 | . . 10 25 Entered New Map 4 | . . . 4 Time Decay 31 | . . 10 21 Squads Dispatched 2 | . 1 . 1 Investigation . | . . . . Extermination . | . . . . Reinforcement 2 | . 1 . 1 Assault . | . . . . Garrison . | . . . . Intercept . | . . . . Searches Triggered . | . . . . Construction Impeded . | . . . . Haulers Reinforced . | . . . . Active Scanning Responses . | . . . . Cargo Convoy Interrupts . | . . . . Stealth | -11 -10 -10 -9 --------- Run | Yrd Mat Min Mat Distress Signals 1 | . . . 1 Communications Jammed . | . . . . Distress Signals . | . . . . Times Spotted 29 | . . 11 18 Peak Tracking Total 14 | . 1 9 14 Tactical Retreats 4 | . . 2 2 Traps | -11 -10 -10 -9 ------- Run | Yrd Mat Min Mat Traps Triggered . | . . . . Indirectly . | . . . . Trap Hack Attempts . | . . . . Triggered . | . . . . Disarmed . | . . . . Reprogrammed . | . . . . Reused . | . . . . Traps Extracted . | . . . . Installed . | . . . . Triggered . | . . . . Machines | -11 -10 -10 -9 ---------- Run | Yrd Mat Min Mat Machines Disabled . | . . . . Max in Single Turn . | . . . . Machines Repaired . | . . . . Machines Dismantled . | . . . . Machines Sabotaged . | . . . . Overloaded Fab Kills . | . . . . Hacking | -11 -10 -10 -9 --------- Run | Yrd Mat Min Mat Machines Accessed . | . . . . Terminals . | . . . . Fabricators . | . . . . Repair Stations . | . . . . Recycling Units . | . . . . Scanalyzers . | . . . . Garrison Access . | . . . . Total Hacks . | . . . . Successful . | . . . . Failed . | . . . . Catastrophic . | . . . . Database Lockouts . | . . . . Manual . | . . . . Terminals . | . . . . Fabricators . | . . . . Repair Stations . | . . . . Recycling Units . | . . . . Scanalyzers . | . . . . Garrison Access . | . . . . Terminal Hacks . | . . . . Fabricator Hacks . | . . . . Repair Station Hacks . | . . . . Recycling Unit Hacks . | . . . . Scanalyzer . | . . . . Garrison Access Hacks . | . . . . Unauthorized Hacks . | . . . . Terminals . | . . . . Fabricators . | . . . . Repair Stations . | . . . . Recycling Units . | . . . . Scanalyzers . | . . . . Garrison Access . | . . . . Data Cores Recovered . | . . . . Used . | . . . . Hacking Detections . | . . . . Full Trace Events . | . . . . Feedback Events . | . . . . Feedback Blocked . | . . . . Robot Schematics Acquired . | . . . . Robots Built . | . . . . Authchips . | . . . . Time . | . . . . Total Robot Build Rating . | . . . . Part Schematics Acquired . | . . . . Parts Built . | . . . . Authchips . | . . . . Time . | . . . . Total Part Build Rating . | . . . . Part Studies Acquired . | . . . . Parts Repaired . | . . . . Time . | . . . . Parts Recycled . | . . . . Recycled Matter . | . . . . Retrieved Matter . | . . . . Retrieved Components . | . . . . Parts Scanalyzed . | . . . . Part Schematics Acquired . | . . . . Parts Damaged . | . . . . Bothacking | -11 -10 -10 -9 ------------ Run | Yrd Mat Min Mat Used RIF Installer . | . . . . Robots Hacked . | . . . . Non-combat . | . . . . Combat . | . . . . Robot Hacks Applied . | . . . . Relay Couplers Released . | . . . . Fabnet Peak Effective % . | . . . . Robots Rewired . | . . . . Allies Hacked . | . . . . Hacks Repelled . | . . . . Allies | -11 -10 -10 -9 -------- Run | Yrd Mat Min Mat Total Allies . | . . . . Largest Group . | . . . . Highest-Rated Group . | . . . . Highest-Rated Ally . | . . . . Total Orders . | . . . . Ally Attacks . | . . . . Total Damage . | . . . . Kills . | . . . . Allies Corrupted . | . . . . Allies Melted . | . . . . Intel | -11 -10 -10 -9 ------- Run | Yrd Mat Min Mat Active Infowar (turns) 390 | . 4 304 82 Optics 390 | . 4 304 82 Robot Analysis Total . | . . . . Derelict Logs Recovered 2 | . . 2 . Drone Launches . | . . . . Drone Recoveries . | . . . . Exploration | -11 -10 -10 -9 ------------- Run | Yrd Mat Min Mat Turns Passed 460 | 18 56 304 82 Spaces Moved 588 | 29 96 299 164 Core 588 | 29 96 299 164 Treads . | . . . . Legs . | . . . . Wheels . | . . . . Hover . | . . . . Flight . | . . . . Fastest Speed 50 | 50 50 50 50 Average Speed 50 | 50 50 50 50 Slowest Speed 50 | 50 50 50 50 Overloaded Moves . | . . . . Propulsion Burnouts . | . . . . Robots Hopped . | . . . . Potential Cave-ins . | . . . . Cave-ins Triggered . | . . . . Exploration Rate (%) 29 | 3 19 60 35 Regions Visited 3 Branch Regions 1 Pre-discovered Areas 1 | . . 1 . Known Exits Taken . | . . . . Unknown Exits Taken 3 | 1 1 1 . Scrap Searched 3 | . . 3 . Spaces Dug . | . . . . Terrain Destroyed . | . . . . Melee . | . . . . Projectile . | . . . . AOE . | . . . . Terrain Rammed . | . . . . Walls Destroyed . | . . . . Machines Disabled . | . . . . Actions | -11 -10 -10 -9 --------- Run | Yrd Mat Min Mat Total 749 | 30 102 453 164 Wait 148 | . . 148 . Move 585 | 28 95 298 164 Hop . | . . . . Pick Up 6 | . 5 1 . Fast Attach 4 | 2 2 . . Attach . | . . . . Detach . | . . . . Swap . | . . . . Drop 2 | . . 2 . Fire . | . . . . Melee . | . . . . Ram 4 | . . 4 . Kick . | . . . . Crush . | . . . . Escape Stasis . | . . . . Rewire . | . . . . Trap . | . . . . Miscellaneous . | . . . . Route ------- -11/Scrapyard -10/Materials -10/Mines -9/Materials (discovered 2 exits: [*Mat] / [*Sto]) History --------- Turn | Location | Event 10 | -11/Scrapyard | Discovered new exit (range 15) 19 | -11/Scrapyard | Entered Materials 46 | -10/Materials | Discovered new exit (range 9) 75 | -10/Materials | Entered Mines 82 | -10/Mines | Assembled infested the area 305 | -10/Mines | Build established: Mutant 311 | -10/Mines | Learned Materials garrison access intel 374 | -10/Mines | Discovered new exit (range 10) 379 | -10/Mines | Entered Materials 379 | -9/Materials | Evolved 2 slots: Propulsion x2 420 | -9/Materials | Discovered new exit (range 16) 428 | -9/Materials | Discovered new exit (range 7) 441 | -9/Materials | Core integrity fell below 50% 451 | -9/Materials | Core integrity fell below 20% 461 | -9/Materials | Destroyed by S-10 Pest with Light Assault Rifle Last Messages --------------- 00371_ Slammed into as-27135. 00372_ Destabilizing: Core damaged (-5). 00373_ Slammed into as-27135. 00374_ EXIT=FOUND 00377_ K-01 Serf collects debris. PARAMETERS=PROPULSION+2 LOCATION=UNKNOWN GOAL=ESCAPE 00399_ K-01 Serf collects debris. 00401_ ALERT: Hostiles spotted, dispatching reinforcements to Terminal M008. 00408_ W-16 Scout sends out distress signal. 00420_ EXIT=FOUND 00422_ S-10 Pest destroyed. 00424_ Lgt. Treads destroyed. 00428_ EXIT=FOUND 00437_ S-10 Pest suffers critical hit (Destroy). 00437_ S-10 Pest destroyed. 00443_ K-01 Serf cleans the Terminal. 00459_ S-10 Pest destroyed. Map ----- +----------------------------------------------------+ | #???????????????????????? | | #???????????????????????? | | #???????????????????????? | | !! #???????????????????????? | | ### ! #???????????????????????? | | # #???????????????????????? | | + #???????????????????????? | | # #???????????????????????? | | #?# #???????????????????????? | | ??# #########??????????????? #??????? | | ??# #?????????##???????????? #??????? | | ### ###????? #??????????? #??????? | | # #????? #??????????? #??????? | | # #????? #??????????? #??????? | | + T ## """ #??????????? +??????? | | # ## """"" #??????????? #??????? | | # ## """"" ??????????? #??????? | | ## ### """"" #?????????? #??????? | | ?# #?# """ #?????????? #??????? | | ?# #?# #?????????? #??????? | | ?# #??? [ #?????????? #??????? | | ## ##???? #######???? #??????? | | # #######+##s = ##### #??????? | | # s%[ s% a +??????? | | + "s #??????? | | # @ #??????? | | # ###### ### ##### #??????? | | ### ###????# #?#######???? #??????? | | ??# #??????+ #????????????? ?????? | | ??# ???????# #????????????? !!???? | | ?? ???????# #?????????????? !!#??? | | ?? ???????# #?????????????? !!#??? | | ? ???????# #??????????????? !!#??? | | ? ##???????# ???????????????? !!#??? | | ? ?????????# ?????????????????####??? | | ##?????????? ???????????????????????? | | ???????????? ???????????????????????? | | ???????????? ???????????????????????? | | ???????????? ???????????????????????? | | ???????????? ???????????????????????? | | ???????????? ???????????????????????? | | ????????????????????????????????????? | | ????????????????????????????????????? | | ????????????????????????????????????? | | ????????????????????????????????????? | | ????????????????????????????????????? | | ????????????????????????????????????? | | ????????????????????????????????????? | | ????????????????????????????????????? | | ????????????????????????????????????? | +----------------------------------------------------+ Best States ------------- Heat Dissipation 28 Energy Generation 5 Energy Capacity 100 Matter Stores 300 Matter Capacity 300 Sight Range 18 Terrain Scan Density 10 Evasion (%) 50 Item Schematics ----------------- None Robot Schematics ------------------ None Fabricated ------------ Nothing Repaired ---------- Nothing Studied --------- None Alien Tech Used ----------------- None Achievements -------------- None Challenges ------------ None Game ------ Seed LatentAluminumDriver Manual? 0 Play Time 00:04:12 Cumulative 331.7 hours Start 2025.10.27 @ 04:44:27 End 2025.10.27 @ 04:47:39 Sessions 1 Manual Loads 0 Difficulty Rogue Special Mode None Game No. 290 Rogue 290 Adventurer 0 Explorer 0 Win Type - Total 2 Types 1/1/0/0/0/0/0/0/0/0 Lore% 78 Gallery% 79 Achievement% 48 Wizard Run 0 Options --------- Layout 1 ASCII 0 Keyboard 0 Movement Numpad Keybinds 0 Fullscreen 1 Font 24/Smallcaps Map View 50x35 Zoom Use 0% Tactical HUD 1 Map Filters NONE Filters NONE Steam 1 RUN: 61b064a7-ede7-4f81-9277-10c14e20b11a